[Event "Reykjavik Open 2024"]
[Site "Reykjavik"]
[Date "2024.03.16"]
[Round "2.17"]
[White "Mohamed Anees M"]
[Black "Suleymenov, Alisher"]
[Result "1/2-1/2"]
[ECO "E03"]
[WhiteElo "2271"]
[BlackElo "2506"]
[Annotator "TA"]
[PlyCount "145"]
[EventDate "2024.03.12"]
[EventCountry "ISL"]
[SourceTitle "playchess.com"]
[Source "ChessBase"]
[SourceQuality "1"]
[TimeControl "40/5400+30:1800+30"]

{[%evp 23,145,-46,-61,-79,-12,-12,-16,-21,-14,-13,-13,-48,-36,-42,0,0,-7,-7,-3,-55,0,-84,-68,-81,-76,-76,-66,-77,-46,-67,-6,-35,-49,-45,-41,-89,-83,-185,-91,-99,-81,-84,-82,-95,-92,-95,-69,-70,-98,-62,-68,-465,0,-210,-43,-33,-41,-81,-61,-60,-54,-56,-52,-62,-42,-125,-16,-48,-44,-33,0,0,15,15,43,0,253,7,7,7,7,8,8,8,28,0,0,-3,0,0,0,0,0,0,0,-7,0,0,0,0,0,0,0,0,0,0,0,0,0,0,0,0,0,0,0,0,0,0,0,0,0,0,0,0]} 1. d4 {[%emt 0:00:12]} d5 {[%emt 0:00:46]} 2. c4 {[%emt 0:00:09]} e6 {[%emt 0:00:06]} 3. Nf3 {[%emt 0:00:05]} Nf6 {[%emt 0:00:22]} 4. g3 {[%emt 0:00:06]} dxc4 {[%emt 0:00:09]} 5. Qa4+ {[%emt 0:02:52]} Nbd7 {[%emt 0:09:06]} 6. Qxc4 {[%emt 0:02:46]} a6 {[%emt 0:00:06]} 7. Bg2 {[%emt 0:03:01]} b5 {[%emt 0:00:21]} 8. Qc2 {[%emt 0:06:01]} Bb7 {[%emt 0:02:22]} 9. O-O {[%emt 0:00:56]} c5 {[%emt 0:01:52]} 10. dxc5 {[%emt 0:05:03]} Bxc5 {[%emt 0:00:45]} 11. a3 {[%emt 0:00:35]} Rc8 {[%emt 0:03:57]} 12. Nc3 {[%emt 0:01:35]} O-O {[%emt 0:01:34]} 13. Bd2 {[%emt 0:04:31]} a5 {[%emt 0:10:21]} (13... h6 $17) 14. b4 $11 {[%emt 0:13:24]} axb4 {[%emt 0:04:54]} (14... Bxf3 {is interesting.} 15. Bxf3 axb4 16. axb4 Bxb4 17. Qb2 Ne5) 15. axb4 {[%emt 0:00:07]} Bxb4 {[%emt 0:00:20][%cal Of6e4]} 16. Qb2 {[%emt 0:01:43]} Bxf3 {[%emt 0:02:57]} 17. Qxb4 {[%emt 0:09:07]} Bxg2 {[%emt 0:07:43]} (17... Ne5 {with more complications.} 18. Rfd1 Nc6 19. Qxb5 Nd4) 18. Kxg2 {[%emt 0:00:03]} Rb8 {[%emt 0:00:51]} 19. Rfd1 {[%emt 0:16:34]} Qc8 {[%emt 0:07:53]} 20. Rab1 {[%emt 0:03:23]} Qc4 {[%emt 0:04:33]} 21. Be1 {[%emt 0:14:24]} (21. f3 $11) 21... Ne5 {[%emt 0:04:22]} (21... h6 $15) 22. Rd4 {[%emt 0:02:00]} (22. Qxc4 $11 {remains equal.} bxc4 23. Rxb8 Rxb8 24. Na4) 22... Qc8 {[%emt 0:04:44] [#] White must now prevent ...Nc6.} 23. Rd6 {[%emt 0:01:28][%cal Og2g1]} Nc4 {[%emt 0:01:11]} 24. Rd4 {[%emt 0:02:05]} e5 {[%emt 0:05:15]} 25. Rdd1 {[%emt 0:02:29][%cal Ob4b3]} Qf5 {[%emt 0:02:41]} 26. Qb3 {[%emt 0:02:38]} Ng4 {[%emt 0:03:33]} (26... Qh5 $15) 27. Kg1 {[%emt 0:02:18]} Qh5 {[%emt 0:08:53]} 28. h4 {[%emt 0:00:08]} Nf6 {[%emt 0:00:56]} 29. Rbc1 {[%emt 0:03:38]} (29. Qa2 $15) 29... e4 $17 {[%emt 0:01:08]} 30. Rc2 {[%emt 0:01:20]} (30. Rd4 $17) 30... Qf5 {[%emt 0:06:39]} (30... h6 $19 {and Black stays clearly on top. Hoping for ...Rfc8.} 31. Rdc1 g5 32. Nxb5 gxh4 33. Qxc4 Rxb5) 31. Kg2 {[%emt 0:00:41][%cal Oc3b5]} (31. Nxb5 $2 Ne5 32. Kg2 e3 $19) 31... Ng4 $36 {[%emt 0:02:23][%mdl 2048] Black is on the roll. A dynamic duo of knights.} 32. Nd5 {[%emt 0:00:29] Repels Nge3+} Qe6 {[%emt 0:00:29] Repels Ne7+} 33. Qb4 {[%emt 0:00:36]} Rfd8 {[%emt 0:00:58]} 34. Nf4 {[%emt 0:00:27]} Qc6 {[%emt 0:00:52]} 35. Rxd8+ {[%emt 0:00:22]} Rxd8 {[%emt 0:00:04]} 36. Ra2 {[%emt 0:00:32]} h6 {[%emt 0:01:02] aiming for ...Rd1.} 37. Ra7 $2 {[%emt 0:00:31][%mdl 8192]} ({White should play} 37. Qe7 $15 Re8 38. Ra6) 37... Rd7 $2 {[%emt 0:00:49]} (37... Nxf2 $19 {( -> ...e3+)} 38. Kxf2 Qb6+ 39. Kg2 Qxa7 40. Qxb5 Ne3+ 41. Kh2 Rb8) 38. Ra1 $2 {[%emt 0:00:10]} (38. Rxd7 $11 Qxd7 39. Bc3) 38... Kh7 $2 {[%emt 0:00:51]} ({Black should try} 38... g5 $19 39. hxg5 hxg5) 39. Qf8 $15 {[%emt 0:00:33]} Qd6 {[%emt 0:00:44]} 40. Qc8 {[%emt 0:00:37]} Qc7 {[%emt 0:00:52]} 41. Qf8 {[%emt 0:30:44]} Rd8 $1 {[%emt 0:30:59]} 42. Qb4 {[%emt 0:00:07]} Rb8 {[%emt 0:00:00]} 43. Bc3 {[%emt 0:00:00]} Qd7 {[%emt 0:00:00] Against Bd4} 44. e3 {[%emt 0:00:00] [#]} (44. Qc5 $15) 44... Re8 {[%emt 0:00:00]} (44... Qf5 $1 $17 45. Bd4 Rd8) 45. Bd4 $11 {[%emt 0:00:00]} Qf5 {[%emt 0:00:00]} 46. Ra7 {[%emt 0:00:00]} Rb8 {[%emt 0:00:00] Repels Rb7} (46... Rd8 $5 47. Rc7 Rxd4 48. exd4 e3 49. Rxc4 bxc4 50. Qxc4 Nxf2 $11) 47. Rc7 {[%emt 0:00:00]} g5 {[%emt 0:00:44]} 48. Qc5 {[%emt 0:00:00] Dancing on a razor blade.} Nce5 {[%emt 0:00:37]} (48... Qxc5 $2 49. Rxf7+ Kg8 50. Rg7+ (50. Bxc5 $2 Kxf7 51. hxg5 hxg5 $19) 50... Kf8 51. Ne6+ (51. Bxc5+ $2 Kxg7 52. Nd5 Kf7 $19) 51... Ke8 52. Bxc5 Ngxe3+ 53. fxe3 $18) 49. Bxe5 {[%emt 0:00:00]} (49. hxg5 {simplifies} hxg5 50. Bxe5 gxf4 51. Bxf4 Qxc5 52. Rxc5 Rb6 53. Rh5+) 49... Nxe5 {[%emt 0:00:06][%mdl 8192]} (49... Qxe5 $11 50. Qa7 (50. Rxf7+ Kg8 $16) 50... gxf4 51. exf4 (51. Qxb8 $2 f3+ 52. Kh3 Nxf2+ 53. Kh2 Ng4+ 54. Kh3 Qe6 $19) 51... Qb2 52. Rxf7+ Kg8 53. Qxb8+ Kxf7 54. Qb7+ Kf6 55. Qc6+ Ke7 56. Qc7+ (56. Qxe4+ Kf8 $11) 56... Kf6) 50. Re7 $2 {[%emt 0:00:10]} ({White has to play} 50. hxg5 $18 {[%cal Og5g6] g6+! is the strong threat.} hxg5 51. Re7) 50... gxf4 {[%emt 0:00:46]} 51. Rxe5 {[%emt 0:00:05][%mdl 4096] Endgame. KQR-KQR} Qg4 {[%emt 0:01:41]} 52. exf4 {[%emt 0:01:09][%cal Oc5a7] Active counter play!} Qf3+ {[%emt 0:00:23]} 53. Kh2 {[%emt 0:00:05]} Rd8 {[%emt 0:01:06]} 54. Qe3 {[%emt 0:03:10]} (54. Qxb5 $2 {is a self mate.} Rd1 (54... Qxf2+ $2 55. Kh3 $19) (54... Qxf2+ $2 55. Kh3 $19)) 54... Qxe3 {[%emt 0:00:55] The position is equal.} 55. fxe3 {[%emt 0:00:01] KR-KR} Rb8 {[%emt 0:00:06]} 56. Rxe4 {[%emt 0:00:13]} b4 {[%emt 0:00:04]} 57. Rd4 {[%emt 0:00:08]} b3 {[%emt 0:00:04] ...b2 would now be deadly.} 58. Rd1 $1 {[%emt 0:00:02]} b2 {[%emt 0:00:15]} 59. Rb1 {[%emt 0:00:04]} f5 {[%emt 0:00:49] And now ...Kg6 would win.} 60. h5 {[%emt 0:00:44]} Kg7 {[%emt 0:00:50]} 61. g4 {[%emt 0:02:21][%cal Bg3g4,Bg4g5][%mdl 32]} Kf6 {[%emt 0:00:10]} 62. Kg3 {[%emt 0:00:03]} Rb7 {[%emt 0:00:45]} 63. Kh4 {[%emt 0:01:04]} Rb3 {[%emt 0:00:31]} 64. g5+ {[%emt 0:01:24]} Kg7 {[%emt 0:00:01]} 65. e4 {[%emt 0:00:57]} fxe4 {[%emt 0:00:10]} 66. Kg4 {[%emt 0:00:03]} Rb5 {[%emt 0:01:17]} 67. gxh6+ {[%emt 0:00:50]} Kxh6 {[%emt 0:00:18][%cal Ob5b3]} 68. f5 {[%emt 0:00:03]} Rb3 {[%emt 0:01:42]} 69. f6 {[%emt 0:00:05]} Rb4 {[%emt 0:00:37]} 70. Kf4 {[%emt 0:00:12]} Kh7 {[%emt 0:00:23]} 71. Ke3 {[%emt 0:00:05]} Kh6 {[%emt 0:00:22]} 72. Kf4 {[%emt 0:00:04]} Kh7 {[%emt 0:00:41]} 73. Ke3 {[%emt 0:00:05] Weighted Error Value: White=0.34/Black=0.36.  Loses game:     	White=2     	Black=1      Missed win:     	White=1     	Black=2      Mistake:       	White=5     	Black=5      Inaccurate:     	White=5     	Black=4      OK:         	White=31    	Black=21     Best:        	White=6     	Black=2      Strong:       	White=1     	Black=1} 1/2-1/2

[Event "Reykjavik Open 2024"]
[Site "Reykjavik"]
[Date "2024.03.16"]
[Round "2.18"]
[White "Pourkashiyan, Atousa"]
[Black "Balakrishnan, Praveen"]
[Result "0-1"]
[ECO "C06"]
[WhiteElo "2270"]
[BlackElo "2490"]
[Annotator "TA"]
[PlyCount "114"]
[EventDate "2024.03.12"]
[EventCountry "ISL"]
[SourceTitle "playchess.com"]
[Source "ChessBase"]
[SourceQuality "1"]
[TimeControl "40/5400+30:1800+30"]

{[%evp 25,114,19,25,28,35,-26,-38,-23,-20,-12,-23,-24,-15,-19,-35,-37,-25,-58,-31,-45,-43,-254,-259,-260,-255,-270,-265,-254,-268,-266,-260,-252,-235,-235,-234,-235,0,-235,-235,-235,-235,-292,-292,-237,-237,-237,-235,-241,-209,-209,-209,-241,-241,-241,-240,-240,-240,-240,-240,-240,-214,-1333,-1305,-1173,-1173,-29961,-855,-29966,-29967,-29969,-29970,-29970,-29966,-29973,-29966,-29946,-29945,-29957,-29960,-29977,-29978,-29978,-29979,-29979,-29980,-29983,-29984,-29988,-29989,-29991,-29992]} 1. e4 {[%emt 0:08:34]} e6 {[%emt 0:00:13]} 2. d4 {[%emt 0:00:27]} d5 {[%emt 0:00:09]} 3. Nd2 {[%emt 0:00:16]} Nf6 {[%emt 0:00:08]} 4. e5 {[%emt 0:00:32]} Nfd7 {[%emt 0:00:07]} 5. c3 {[%emt 0:00:32]} c5 {[%emt 0:00:07]} 6. Bd3 {[%emt 0:00:06]} Nc6 {[%emt 0:00:16]} 7. Ne2 {[%emt 0:00:05]} cxd4 {[%emt 0:00:21]} 8. cxd4 {[%emt 0:00:02]} f6 {[%emt 0:00:13]} 9. exf6 {[%emt 0:00:38]} Nxf6 {[%emt 0:00:08][%cal Bd7f6,Bf6g4,Bg4e5][%mdl 32]} 10. Nf3 {[%emt 0:00:30]} Bd6 {[%emt 0:00:07]} 11. O-O {[%emt 0:00:30]} O-O {[%emt 0:00:07]} 12. Bf4 {[%emt 0:00:50]} Bxf4 {[%emt 0:00:13]} 13. Nxf4 {[%emt 0:00:03]} Ng4 {[%emt 0:00:16]} 14. Ne2 {[%emt 0:13:38]} e5 {[%emt 0:02:00]} 15. dxe5 {[%emt 0:08:05] [#]} (15. Nxe5 $1 $14 Ncxe5 16. dxe5) 15... Rxf3 $1 $11 {[%emt 0:01:08]} 16. gxf3 {[%emt 0:00:17] Black is slightly better.} Ngxe5 {[%emt 0:00:21] A dynamic duo of knights.} 17. Kh1 $1 {[%emt 0:14:25]} Qf6 {[%emt 0:02:26][%mdl 1024] Black has compensation.} 18. Ng1 {[%emt 0:03:38]} Be6 {[%emt 0:00:40]} 19. Re1 {[%emt 0:05:09]} Rd8 {[%emt 0:00:59]} 20. Qe2 {[%emt 0:11:46][%cal Ob2b4]} a6 {[%emt 0:36:57]} 21. b4 {[%emt 0:11:50]} d4 {[%emt 0:08:23][%cal Of6f7]} 22. Be4 {[%emt 0:01:38]} d3 {[%emt 0:04:46]} 23. Qe3 {[%emt 0:01:04]} ({White has to play} 23. Qb2 $1 $15 d2 24. Bxc6 dxe1=N (24... dxe1=R 25. Rxe1 Nxc6 26. Qxf6 $15) (24... bxc6 25. Rxe5 Rd5 26. Rd1 $17) 25. Rxe1 bxc6 (25... Nxc6 26. Qxf6 gxf6 27. Rxe6 $15) 26. Rxe5) 23... Nxb4 {[%emt 0:11:06]} 24. Bxb7 {[%emt 0:08:26] [#]} Nc2 $1 {[%emt 0:04:09]} (24... d2 25. Qxe5 Nc2 (25... dxe1=R 26. Rxe1 Qxe5 27. Rxe5 $15) 26. Qxf6 (26. Qxe6+ $2 Qxe6 27. Rxe6 Nxa1 $19) 26... gxf6 27. Red1 (27. Rxe6 $2 Nxa1 28. Bxa6 d1=Q $19) 27... Nxa1 28. Bxa6 $19) 25. Qxe5 {[%emt 0:02:59]} Qxe5 {[%emt 0:05:55]} 26. Rxe5 {[%emt 0:00:03]} Nxa1 {[%emt 0:00:07]} 27. Bxa6 {[%emt 0:02:01]} (27. Rxe6 $2 d2 28. Bxa6 d1=Q $19 (28... d1=R 29. Re4 $17)) 27... d2 {[%emt 0:08:50]} (27... Bxa2 28. Ra5 d2 29. Be2 $15) 28. Be2 {[%emt 0:00:12]} Bxa2 {[%emt 0:04:03]} (28... d1=R 29. Bxd1 (29. Rxe6 Rc1 $17) 29... Bxa2 30. Ba4 $17) 29. Ra5 {[%emt 0:01:00][%cal Oe2d1] [#] Strongly threatening Bd1!} Re8 $1 {[%emt 0:01:27][%cal Oe8e2] Hoping for ...Rxe2!} 30. Rxa2 {[%emt 0:01:50]} Rxe2 $1 {[%emt 0:00:07]} 31. Rxa1 $19 {[%emt 0:00:47][%mdl 4096] Endgame. KRN-KR} (31. Ra8+ $11 Kf7 32. Rxa1 (32. Nxe2 $2 d1=Q+ 33. Ng1 h6 $19)) 31... Re1 {[%emt 0:00:05]} 32. Ra8+ {[%emt 0:00:06]} Kf7 {[%emt 0:00:05]} 33. Rd8 {[%emt 0:00:04]} d1=Q {[%emt 0:00:15]} ({Inferior is} 33... d1=B 34. Rd3 $11) ({Less strong is} 33... d1=R 34. Rxd1 Rxd1 35. Kg2 $17) 34. Rxd1 {[%emt 0:00:03]} Rxd1 {[%emt 0:00:06] KR-KN} 35. Kg2 {[%emt 0:00:19]} Rd2 {[%emt 0:01:01]} 36. f4 {[%emt 0:02:11]} Kf6 {[%emt 0:02:45]} 37. Nf3 {[%emt 0:00:47]} Rd3 {[%emt 0:00:28]} 38. Ne1 {[%emt 0:03:15] [#]} Rc3 {[%emt 0:06:41]} 39. f3 {[%emt 0:00:33]} Ke6 {[%emt 0:00:34]} 40. Kg3 {[%emt 0:00:34]} Kd5 {[%emt 0:00:31]} 41. Ng2 {[%emt 0:01:40]} Kd4 {[%emt 0:00:28]} 42. Nh4 {[%emt 0:08:56]} Kd3 {[%emt 0:01:02] And now ...Ke2 would win.} 43. f5 $2 {[%emt 0:06:35]} (43. Nf5 Rc6 44. h4) 43... Ke2 {[%emt 0:07:16]} 44. Kg4 {[%emt 0:08:37]} Kf2 {[%emt 0:02:29] ( -> ...Rc4+)} 45. f4 {[%emt 0:04:09]} Rc6 {[%emt 0:02:13]} (45... Rc5 $142 46. Kg5 Ke3 47. Kg4 Ke4 48. Kg3 Rc1 49. Ng2 Kxf5 50. Nh4+ Ke4 51. f5 Rg1+ 52. Kf2 Rg4 53. Ng2 Kxf5 54. Ne3+ Kg5 55. Nd5 Kh4 56. Nc7 Kh3 57. Kf3 h5 58. Nb5 Kxh2 59. Nd6 Rg3+ 60. Kf2 h4 61. Nf7 Rg2+ 62. Ke3 Kg1 63. Ne5 Rg3+ 64. Ke4 h3 65. Kf4 Kg2 66. Ng4 Rxg4+ 67. Kxg4 h2 68. Kf5 h1=Q (68... h1=R {leads to mate.} 69. Ke4 Re1+ 70. Kd5 Kf3 71. Kd6 g5 72. Kc5 g4 73. Kd6 g3 74. Kc7 g2 75. Kd7 g1=Q 76. Kd6 Qd4+ 77. Kc6 Rc1+ 78. Kb5 Qb2+ 79. Ka6 Ra1#) 69. Ke6 Qd1 70. Ke7 Kf3 (70... g5 71. Kf7 g4 72. Kg6 Kh3 73. Kh7 g3 74. Kh8 g2 75. Kh7 g1=Q 76. Kh6 Qdg4 77. Kh7 Qh5#) 71. Kf7 Qd7+ (71... g5 72. Kg7 g4 73. Kf8 g3 74. Kf7 g2 75. Kg6 g1=Q+ 76. Kh5 Qg4+ 77. Kh6 Qh1#) 72. Kf8 Kf4 73. Kg8 g5 74. Kf8 Kf5 (74... Qe6 75. Kg7 Kf5 76. Kf8 Qd7 77. Kg8 Kg6 78. Kh8 Qh7#) 75. Kg8 Kg6 76. Kh8 Qh7#) 46. Kg5 {[%emt 0:01:38]} Ke3 {[%emt 0:03:08] Black mates.} 47. Kg4 {[%emt 0:01:53]} Ke4 {[%emt 0:00:35]} 48. Kg3 {[%emt 0:00:44]} Rc1 {[%emt 0:01:48]} 49. h3 {[%emt 0:00:30]} Ra1 {[%emt 0:00:33]} 50. Ng2 {[%emt 0:00:21]} Kxf5 {[%emt 0:00:34]} 51. Kf3 {[%emt 0:00:05]} Rf1+ {[%emt 0:00:07]} 52. Kg3 {[%emt 0:00:51]} Ke4 {[%emt 0:00:15]} 53. Kg4 {[%emt 0:00:12]} g6 {[%emt 0:01:30]} 54. Kg3 {[%emt 0:00:51]} Rf3+ {[%emt 0:00:25]} 55. Kh2 {[%emt 0:00:37]} Rc3 {[%emt 0:00:39]} 56. h4 {[%emt 0:00:25]} Kf3 {[%emt 0:00:08]} 57. Kh3 {[%emt 0:00:40]} Rc1 {[%emt 0:00:07] Weighted Error Value: White=0.54/Black=0.18 (very precise) .  Loses game:     	White=2     	---        Mistake:       	White=2     	---        Inaccurate:     	White=1     	Black=1      OK:         	White=8     	Black=14     Best:        	White=5     	Black=3      Strong:       	White=1     	Black=2      Brilliant:      	---       	Black=1} 0-1

[Event "Reykjavik Open 2024"]
[Site "Reykjavik"]
[Date "2024.03.16"]
[Round "2.19"]
[White "Gislason, Gudmundur"]
[Black "Steingrimsson, Hedinn"]
[Result "0-1"]
[ECO "A33"]
[WhiteElo "2266"]
[BlackElo "2477"]
[Annotator "TA"]
[PlyCount "80"]
[EventDate "2024.03.12"]
[EventCountry "ISL"]
[SourceTitle "playchess.com"]
[Source "ChessBase"]
[SourceQuality "1"]
[TimeControl "40/5400+30:1800+30"]

{[%evp 11,80,0,8,-15,17,-39,-33,-32,-33,-37,-42,-52,-26,-37,-49,-35,-46,-56,-22,-87,-70,-126,-80,-289,-270,-358,-272,-304,-232,-237,-230,-273,-238,-326,-308,-346,-352,-392,-376,-377,-187,-169,13,-128,-81,-75,-58,-51,-60,-48,-26,-30,-26,-55,-6,-21,-21,-170,-164,-162,-171,-266,-258,-251,-252,-251,-259,-518,-475,-520,-447]} 1. Nf3 {[%emt 0:00:48]} c5 {[%emt 0:05:14]} 2. c4 {[%emt 0:01:34]} Nc6 {[%emt 0:02:07]} 3. d4 {[%emt 0:02:35]} cxd4 {[%emt 0:00:51]} 4. Nxd4 {[%emt 0:00:08]} Nf6 {[%emt 0:00:07]} 5. Nc3 {[%emt 0:00:10]} e6 {[%emt 0:00:43]} 6. e3 {[%emt 0:04:29]} Bb4 {[%emt 0:12:31]} 7. Ndb5 {[%emt 0:09:57]} Ne4 {[%emt 0:08:41]} 8. Qg4 {[%emt 0:05:03]} (8. Bd2 $11 Nf6 9. a3) 8... Nxc3 $15 {[%emt 0:05:44]} 9. bxc3 {[%emt 0:00:24] Schwarz steht etwas besser.} Qf6 {[%emt 0:04:22]} 10. Rb1 {[%emt 0:09:54]} Bxc3+ {[%emt 0:07:36]} 11. Kd1 {[%emt 0:01:10]} h5 {[%emt 0:11:27]} 12. Qg3 {[%emt 0:03:53]} Be5 {[%emt 0:00:40]} 13. f4 {[%emt 0:00:07]} Bb8 {[%emt 0:00:06]} 14. Ba3 {[%emt 0:20:11]} e5 {[%emt 0:01:19][%cal Re5f4]} 15. Qe1 {[%emt 0:11:51]} (15. Bd3 $11) 15... d6 {[%emt 0:03:51] ...0-0 wäre nun fies.} 16. Qd2 {[%emt 0:00:15]} ({Vorzuziehen ist} 16. Nc3 $15) 16... O-O {[%emt 0:02:42]} ({Besser ist} 16... exf4 {Zielt auf ...Bf5 ab.} 17. exf4 Bf5) 17. Kc1 $2 {[%emt 0:04:24]} (17. Nc3 $17) 17... exf4 $19 {[%emt 0:11:16]} 18. exf4 {[%emt 0:00:36][%cal Ob5c3]} Rd8 {[%emt 0:01:54][%cal Od6d5]} 19. g3 {[%emt 0:00:20]} Bf5 {[%emt 0:00:34] ...d5 ist eine echte Drohung.} 20. Bd3 {[%emt 0:06:25]} d5 {[%emt 0:00:40]} 21. c5 {[%emt 0:08:08]} b6 {[%emt 0:02:11]} 22. Rd1 {[%emt 0:07:35]} Bg4 {[%emt 0:07:20]} 23. Re1 {[%emt 0:00:14]} a6 {[%emt 0:00:53]} 24. Nc3 {[%emt 0:01:06]} bxc5 {[%emt 0:01:00] Und ...Bc7 würde nun gewinnen.} 25. Bc2 {[%emt 0:00:59]} Ba7 {[%emt 0:05:07]} (25... Bc7 $142 26. Nxd5 Qh6 (26... Qd6 $2 27. Qd3 $19)) 26. Nxd5 {[%emt 0:00:21]} Qd6 {[%emt 0:01:01] [#]} (26... Qh6 $1 $19 27. Rb7 Be6) 27. Qd3 {[%emt 0:00:34] [#] Pariert Bf3.} (27. Rb7 $1 $11 Qh6 (27... Qxd5 $2 {ist das falsche Schlagen.} 28. Re8+ Rxe8 29. Qxd5 $16) (27... Nd4 28. Qxd4) 28. Rc7) 27... g6 {[%emt 0:00:02] Das Brett brennt.} ({Schwächer ist} 27... Qxd5 28. Qh7+ Kf8 29. Qh8#) (27... Qh6 $142 $1 {Weiss muss nun ...Be6 beachten.} 28. Qe4 Nd4 29. Ne7+ Kh8) 28. Ne7+ $17 {[%emt 0:00:38]} Nxe7 {[%emt 0:02:38]} 29. Qxd6 {[%emt 0:00:04]} Rxd6 {[%emt 0:00:04]} 30. Rxe7 {[%emt 0:00:12]} Bb6 $36 {[%emt 0:01:55][%mdl 2048] Schwarz hat Druck.} 31. Rb7 {[%emt 0:00:45]} Ba5 {[%emt 0:00:18] Und jetzt ...Re8 wäre schön.} 32. Bxc5 {[%emt 0:00:13]} Bd2+ {[%emt 0:00:22]} 33. Kb2 {[%emt 0:00:13]} Rd5 {[%emt 0:00:12]} 34. Bb4 {[%emt 0:00:40] [#]} (34. Be7 $11) 34... Bxb4 $1 $19 {[%emt 0:00:50]} 35. Rxb4 {[%emt 0:00:10]} Rd2 {[%emt 0:00:02][%cal Oa8c8]} 36. Kc3 {[%emt 0:01:03]} (36. Kc1 {war einen Versuch wert.} Rxh2 37. Rc4) 36... Rxh2 {[%emt 0:00:03] Droht stark ...Rc8+.} 37. Rb8+ {[%emt 0:00:15]} Rxb8 {[%emt 0:00:02]} 38. Rxb8+ {[%emt 0:00:09]} Kg7 {[%emt 0:00:02]} 39. Ra8 $2 {[%emt 0:00:31]} (39. Bb3) 39... Rh3 {[%emt 0:00:43]} 40. Rxa6 {[%emt 0:00:36]} h4 {[%emt 0:00:42] Gewichteter Fehlerwert: Weiß=0.52/Schwarz=0.28 (präzise) .  Verlustzug:     	Weiß=1     	---        Gewinn verpasst:   	---       	Schwarz=1     Fehler:       	Weiß=7     	Schwarz=3     Ungenau:       	Weiß=3     	Schwarz=4     OK:         	Weiß=4     	Schwarz=15    Bester:       	Weiß=5     	Schwarz=2     Stark:        	---       	Schwarz=1} 0-1

[Event "Reykjavik Open 2024"]
[Site "Reykjavik"]
[Date "2024.03.16"]
[Round "2.20"]
[White "Zhu, Jiner"]
[Black "Large, Peter G"]
[Result "0-1"]
[ECO "C45"]
[WhiteElo "2467"]
[BlackElo "2262"]
[Annotator "TA"]
[PlyCount "80"]
[EventDate "2024.03.12"]
[EventCountry "ISL"]
[SourceTitle "playchess.com"]
[Source "ChessBase"]
[SourceQuality "1"]
[TimeControl "40/5400+30:1800+30"]

{[%evp 9,80,52,48,40,40,45,74,62,67,73,78,65,62,60,76,68,72,64,67,65,62,65,83,60,80,35,75,71,89,77,70,50,62,0,0,0,0,-9,-12,-37,-26,-74,-36,-53,-105,-629,-621,-639,-617,-644,-620,-627,-565,-671,-655,-642,-608,-627,-622,-850,-808,-874,-866,-837,-837,-894,-888,-869,-860,-862,-809,-731,-712]} 1. e4 {[%emt 0:00:21]} e5 {[%emt 0:01:27]} 2. Nf3 {[%emt 0:00:15]} Nc6 {[%emt 0:00:07]} 3. Bc4 {[%emt 0:00:22]} g6 {[%emt 0:02:17]} 4. d4 {[%emt 0:00:35]} exd4 {[%emt 0:00:08]} 5. Nxd4 {[%emt 0:00:06]} Bg7 {[%emt 0:00:22]} 6. Nxc6 {[%emt 0:00:19]} bxc6 {[%emt 0:00:08]} 7. O-O {[%emt 0:00:29]} Nh6 {[%emt 0:04:35]} 8. Nc3 {[%emt 0:01:50] Weiß steht besser.} O-O {[%emt 0:00:09]} 9. Bf4 {[%emt 0:00:32]} d6 {[%emt 0:02:53]} 10. h3 {[%emt 0:01:57] [#] Pariert Ng4. Und jetzt Qc1 wäre schön.} Be6 {[%emt 0:04:47]} 11. Bb3 {[%emt 0:01:12] Zielt auf Qd2 ab.} Kh8 {[%emt 0:01:49]} 12. Qe2 {[%emt 0:04:28]} Qc8 {[%emt 0:06:10]} 13. Rad1 {[%emt 0:05:47]} f6 {[%emt 0:08:33]} 14. Be3 {[%emt 0:06:56]} a5 {[%emt 0:01:54]} 15. Qd2 {[%emt 0:05:56]} Ng8 {[%emt 0:07:38]} 16. f4 {[%emt 0:01:15][%cal Bf2f4,Bf4f5][%mdl 32]} Ne7 {[%emt 0:00:38]} 17. Rde1 {[%emt 0:00:46]} c5 {[%emt 0:04:28] [#]} 18. f5 $1 {[%emt 0:01:55]} Bf7 {[%emt 0:08:03]} (18... Bxb3 19. axb3) 19. Bxf7 {[%emt 0:08:45]} Rxf7 {[%emt 0:00:18]} 20. Nd5 {[%emt 0:08:43]} gxf5 {[%emt 0:03:01]} 21. Bh6 {[%emt 0:10:29]} (21. Nxe7 $14 Rxe7 22. exf5 (22. Rxf5 Qb7 $11)) 21... Bxh6 $11 {[%emt 0:07:35]} 22. Qxh6 {[%emt 0:00:05] Droht Nxe7 und aus.} Nxd5 {[%emt 0:00:46]} 23. exd5 {[%emt 0:00:06]} Qb7 $1 {[%emt 0:02:52][%csl LRb2,LRd5]} 24. Rxf5 {[%emt 0:13:20]} (24. Qc1 {vereinfacht} Qxd5 25. c4 Qc6 26. Rxf5 Re8 27. Rxe8+ Qxe8 28. Qc3) 24... Qxb2 {[%emt 0:00:09]} 25. Re6 {[%emt 0:01:08]} (25. Qh5 $11 Qxc2 26. Qxf7 Qxf5 27. Re6) 25... Qxa2 {[%emt 0:17:19]} 26. Rexf6 {[%emt 0:05:43]} Qa1+ {[%emt 0:00:26]} 27. Rf1 $2 {[%emt 0:00:14][%mdl 8192] Verliert die Partie.} (27. Kh2 $17 Rxf6 28. Rxf6 (28. Qxf6+ $2 {verliert.} Qxf6 29. Rxf6 Kg7 $19) 28... Qe5+ 29. Kg1) 27... Rxf6 $19 {[%emt 0:01:53] Schwarz steht klar auf Gewinn.} 28. Qxf6+ {[%emt 0:00:40]} Qxf6 {[%emt 0:00:07]} 29. Rxf6 {[%emt 0:00:04][%mdl 4096] Endspiel. KR-KR} a4 {[%emt 0:00:25]} 30. Rf1 {[%emt 0:00:42]} Kg7 {[%emt 0:00:14]} 31. Ra1 {[%emt 0:03:01]} Kf6 {[%emt 0:00:08]} 32. Kf2 {[%emt 0:00:06]} Ke5 {[%emt 0:00:09]} 33. Ke3 {[%emt 0:00:18]} Kxd5 {[%emt 0:00:11]} 34. Kd3 {[%emt 0:00:04]} a3 {[%emt 0:03:06]} 35. c4+ {[%emt 0:01:40]} Ke5 {[%emt 0:00:09]} 36. Ra2 {[%emt 0:00:06]} Kf4 {[%emt 0:00:33]} 37. Kc3 {[%emt 0:00:35]} Kg3 {[%emt 0:00:15]} 38. Kd3 {[%emt 0:00:36]} Ra4 {[%emt 0:01:13]} 39. Kc3 {[%emt 0:00:21]} h5 {[%emt 0:00:07]} 40. Kb3 {[%emt 0:00:26]} Ra8 {[%emt 0:00:22] Gewichteter Fehlerwert: Weiß=0.34/Schwarz=0.05 (makellos) .  Verlustzug:     	Weiß=1     	---        Fehler:       	Weiß=2     	---        Ungenau:       	Weiß=1     	Schwarz=3     OK:         	Weiß=5     	Schwarz=8     Bester:       	---       	Schwarz=3     Stark:        	---       	Schwarz=1} 0-1